fUST/lending_fUST_20240414
["ID","MTS","AMOUNT","RATE_DAILY","PERIOD"]
[322559816,1713059438991,-155.897463,0.00043274,4]
[322559817,1713059439000,-380.25648793,0.00043274,4]
[322559818,1713059439009,-155.31014102,0.00043274,4]
[322559819,1713059439018,-219.22557202,0.00043274,4]
[322559820,1713059439027,-154.9690062,0.00043274,7]
[322559821,1713059439037,-389.68571127,0.00043274,4]
[322559822,1713059439047,-279.83653678,0.00043274,4]
[322559823,1713059439057,-330.82036803,0.00043274,4]
[322559824,1713059439067,-154.98450155,0.00043274,4]
[322559825,1713059439081,-705.32025395,0.00043274,4]
[322559826,1713059439159,-451.51609272,0.00043274,4]
[322559827,1713059439168,-513.66055852,0.00043274,4]
[322559828,1713059439178,-1289.30357354,0.00043274,4]
[322559829,1713059439187,-1997.15440807,0.00043274,4]
[322559830,1713059439197,-155.01114593,0.00043274,4]
[322559831,1713059439213,-6612.50553827,0.00043274,2]
[322559832,1713059439222,-155.25842455,0.00043274,4]
[322559833,1713059439231,-155.93727187,0.00043274,4]
[322559834,1713059439241,-193.09908054,0.00043274,4]
[322559835,1713059439250,-418.62152639,0.00043274,4]
[322559836,1713059439259,-892.15743741,0.00043274,4]
[322559837,1713059439268,-788.819534,0.000433,41]
[322559838,1713059439277,-2690.0,0.0004365,120]
[322559839,1713059439288,-294.96154457,0.00043744,2]
[322559840,1713059439297,-150.0,0.00043855,60]
[322559841,1713059439305,-200.0,0.00044,2]
[322559842,1713059439315,-168.497986,0.00044136,2]
[322559843,1713059439324,-294.96154457,0.00044796,2]
[322559844,1713059439333,-150.0,0.00044877,90]
[322559845,1713059439343,-150.0,0.00044999,60]
[322559846,1713059439352,-8524.31651613,0.00045,120]
[322559847,1713059439361,-2916.707416,0.00045085,120]
[322559848,1713059439370,-620.85956247,0.00045688,2]
[322559849,1713059439380,-154.86062544,0.000459,4]
[322559850,1713059439389,-150.0,0.00045999,60]
[322559851,1713059439399,-783.0,0.00046759,3]
[322559852,1713059439408,-4248.63394301,0.000469,2]
[322559853,1713059439416,-645.02,0.00046979,7]
[322559854,1713059439426,-1072.78,0.00046979,7]
[322559855,1713059439435,-204728.22903699,0.0004698,120]
[322559856,1713059439445,-20393.57376663,0.00047,4]
[322559857,1713059439454,-152.0,0.00047121,90]
[322559858,1713059439463,-150.8642222,0.00047706,2]
[322559859,1713059439473,-2986.74538673,0.000485,7]
[322559861,1713059439482,-301.7284444,0.00048508,4]
[322559862,1713059439491,-3374.50106562,0.00049,120]
[322559863,1713059439501,-2000.0,0.00049,68]
[322559864,1713059439510,-2904.938068,0.0004901,68]
[322559865,1713059439519,-603.4568888,0.00049323,7]
[322559866,1713059439528,-154.86062544,0.0005,30]
[322559867,1713059439538,-206.75820251,0.0005,20]
[322559868,1713059439547,-3234.09818241,0.0005,14]
[322559869,1713059439558,-151.0,0.0005,120]
[322559870,1713059439567,-9999.12416713,0.0005,120]
[322559871,1713059439576,-150.0,0.00050262,120]
[322559872,1713059439586,-306.0,0.00050288,2]
[322559874,1713059439596,-1206.9137776,0.00050572,30]
[322559875,1713059439605,-620.85956247,0.00050688,2]
[322559876,1713059439614,-306.0,0.00050836,2]
[322559877,1713059439623,-158.233435,0.00050881,2]
[322559878,1713059439632,-551.20427816,0.00050996,7]
[322559879,1713059439641,-62488.74319952,0.00051111,2]
[322559880,1713059439651,-1097.0,0.00051435,10]
[322559882,1713059439660,-2916.707416,0.00051526,120]
[322559884,1713059439669,-150.0,0.00053403,120]
[322559886,1713059439678,-150.0,0.00053852,120]
[322559888,1713059439687,-309.6284644,0.00054792,4]
[322559890,1713059439696,-242.29194742,0.00054793,4]
[322559892,1713059439705,-7934.4326715,0.00054793,4]
[322559894,1713059439715,-151.0,0.00054793,7]
[322559896,1713059439724,-151.0,0.00054793,7]
[322559898,1713059439734,-283.17387529,0.00054794,120]
[322559902,1713059439743,-500.0,0.00054794,120]
[322559903,1713059439754,-500.0,0.00054794,120]
[322559906,1713059439763,-155.18714578,0.00054794,120]
[322559909,1713059439772,-500.0,0.00054794,120]
[322559912,1713059439783,-500.0,0.00054794,120]
[322559915,1713059439793,-500.0,0.00054794,120]
[322559917,1713059439802,-500.0,0.00054794,120]
[322559919,1713059439811,-500.0,0.00054794,120]
[322559920,1713059439821,-500.0,0.00054794,120]
[322559921,1713059439831,-500.0,0.00054794,120]
[322559922,1713059439841,-230.30707394,0.00054794,120]
[322559923,1713059439850,-207.57755959,0.00054794,120]
[322559924,1713059439860,-500.0,0.00054794,120]
[322559925,1713059439870,-500.0,0.00054794,120]
[322559926,1713059439879,-500.0,0.00054794,120]
[322559927,1713059439888,-500.0,0.00054794,120]
[322559928,1713059439897,-500.0,0.00054794,120]
[322559929,1713059439907,-500.0,0.00054794,120]
[322559930,1713059439916,-500.0,0.00054794,120]
[322559931,1713059439925,-500.0,0.00054794,7]
[322559932,1713059439935,-239.59887307,0.00054794,120]
[322559933,1713059439944,-176.94,0.00054794,7]
[322559934,1713059439954,-176.94,0.00054794,7]
[322559935,1713059439963,-500.0,0.00054794,120]
[322559936,1713059439972,-176.94,0.00054794,7]
[322559937,1713059439981,-500.0,0.00054794,120]
[322559938,1713059439991,-176.94,0.00054794,7]
[322559939,1713059440001,-176.94,0.00054794,7]
[322559940,1713059440010,-176.94,0.00054794,7]
[322559941,1713059440020,-500.0,0.00054794,120]
[322559942,1713059440029,-407.98962987,0.00054794,120]
[322559943,1713059440040,-500.0,0.00054794,120]
[322559944,1713059440050,-500.0,0.00054794,120]
[322559945,1713059440060,-500.0,0.00054794,120]
[322559946,1713059440072,-500.0,0.00054794,120]
[322559947,1713059440081,-500.0,0.00054794,120]
[322559948,1713059440091,-500.0,0.00054794,120]
[322559949,1713059440101,-500.0,0.00054794,120]
[322559950,1713059440110,-508.5765188,0.00054794,120]
[322559951,1713059440119,-500.0,0.00054794,120]
[322559952,1713059440129,-500.0,0.00054794,120]
[322559953,1713059440138,-500.0,0.00054794,120]
[322559954,1713059440149,-500.0,0.00054794,120]
[322559955,1713059440159,-500.0,0.00054794,120]
[322559956,1713059440168,-500.0,0.00054794,120]
[322559957,1713059440177,-500.0,0.00054794,120]
[322559958,1713059440186,-500.0,0.00054794,120]
[322559959,1713059440196,-500.0,0.00054794,120]
[322559960,1713059440205,-384.08421743,0.00054794,120]
[322559961,1713059440215,-500.0,0.00054794,120]
[322559962,1713059440224,-500.0,0.00054794,120]
[322559963,1713059440234,-500.0,0.00054794,120]
[322559964,1713059440244,-151.0,0.00054794,7]
[322559965,1713059440253,-500.0,0.00054794,120]
[322559966,1713059440262,-151.0,0.00054794,7]
[322559967,1713059440271,-151.0,0.00054794,7]
[322559968,1713059440281,-500.0,0.00054794,120]
[322559969,1713059440290,-160.4569,0.00054794,7]
[322559970,1713059440300,-510.14736487,0.00054794,120]
[322559971,1713059440309,-500.0,0.00054794,120]
[322559972,1713059440319,-500.0,0.00054794,120]
[322559973,1713059440389,-500.0,0.00054794,120]
[322559975,1713059440399,-500.0,0.00054794,120]
[322559976,1713059440408,-500.0,0.00054794,120]
[322559977,1713059440418,-175.397129,0.00054794,7]
[322559978,1713059440427,-175.397129,0.00054794,7]
[322559979,1713059440435,-500.0,0.00054794,120]
[322559980,1713059440444,-175.397129,0.00054794,7]
[322559981,1713059440453,-175.397129,0.00054794,7]
[322559982,1713059440463,-175.397129,0.00054794,7]
[322559983,1713059440472,-175.397129,0.00054794,7]
[322559984,1713059440481,-500.0,0.00054794,120]
[322559985,1713059440490,-500.0,0.00054794,120]
[322559986,1713059440500,-500.0,0.00054794,120]
[322559987,1713059440510,-500.0,0.00054794,120]
[322559988,1713059440519,-500.0,0.00054794,120]
[322559989,1713059440528,-500.61418007,0.00054794,120]
[322559990,1713059440538,-238.74749659,0.00054794,120]
[322559991,1713059440547,-500.0,0.00054794,120]
[322559992,1713059440556,-500.0,0.00054794,120]
[322559993,1713059440566,-505.57019764,0.00054794,120]
[322559994,1713059440575,-500.0,0.00054794,120]
[322559995,1713059440584,-500.0,0.00054794,120]
[322559996,1713059440594,-500.0,0.00054794,120]
[322559997,1713059440603,-500.0,0.00054794,120]
[322559998,1713059440613,-398.81236266,0.00054794,120]
[322559999,1713059440622,-500.0,0.00054794,120]
[322560000,1713059440632,-172.00134143,0.00054794,120]
[322560001,1713059440641,-550.78548023,0.00054794,120]
[322560002,1713059440651,-500.0,0.00054794,120]
[322560003,1713059440659,-500.0,0.00054794,120]
[322560004,1713059440669,-500.0,0.00054794,120]
[322560005,1713059440678,-500.0,0.00054794,120]
[322560006,1713059440687,-500.0,0.00054794,120]
[322560007,1713059440696,-500.0,0.00054794,120]
[322560008,1713059440706,-500.0,0.00054794,120]
[322560009,1713059440715,-1050.99,0.00054794,120]
[322560010,1713059440724,-500.0,0.00054794,120]
[322560011,1713059440733,-500.0,0.00054794,120]
[322560012,1713059440743,-500.0,0.00054794,120]
[322560013,1713059440752,-500.0,0.00054794,120]
[322560014,1713059440762,-500.0,0.00054794,120]
[322560015,1713059440771,-501.53572753,0.00054794,120]
[322560016,1713059440781,-500.0,0.00054794,120]
[322560017,1713059440793,-500.0,0.00054794,120]
[322560018,1713059440802,-500.0,0.00054794,120]
[322560019,1713059440812,-500.0,0.00054794,120]
[322560020,1713059440821,-500.0,0.00054794,120]
[322560021,1713059440830,-534.61,0.00054794,120]
[322560022,1713059440839,-500.0,0.00054794,120]
[322560023,1713059440849,-500.0,0.00054794,120]
[322560024,1713059440858,-500.0,0.00054794,120]
[322560025,1713059440867,-500.0,0.00054794,120]
[322560026,1713059440877,-500.0,0.00054794,120]
[322560027,1713059440886,-500.0,0.00054794,120]
[322560028,1713059440895,-500.0,0.00054794,120]
[322560029,1713059440904,-502.04804783,0.00054794,120]
[322560030,1713059440914,-500.0,0.00054794,120]
[322560032,1713059440922,-2085.53,0.00054794,120]
[322560033,1713059440932,-500.0,0.00054794,120]
[322560035,1713059440941,-497.2263876,0.00054794,120]
[322560036,1713059440951,-338.79657703,0.00054794,120]
[322560039,1713059440971,-161.20342297,0.00054794,120]
[322560040,1713059440981,-148.05646777,0.00054794,120]
[322560108,1713059443246,-0.22975299,0.00040687,2]
[322560125,1713059446253,-681.84881809,0.00040687,2]
[322560126,1713059446262,-1061.90418992,0.00041,4]
[322560127,1713059446271,-294.96154457,0.00045848,2]
[322560128,1713059446280,-294.96154457,0.000469,2]
[322560129,1713059446291,-741.96287398,0.00054793,4]
[322560130,1713059446301,-351.94353223,0.00054794,120]
[322560131,1713059446310,-500.0,0.00054794,120]
[322560132,1713059446319,-500.0,0.00054794,120]
[322560133,1713059446329,-500.0,0.00054794,120]
[322560134,1713059446338,-342.62593092,0.00054794,120]
[322560135,1713059446347,-500.0,0.00054794,120]
[322560136,1713059446356,-500.0,0.00054794,120]
[322560137,1713059446366,-500.32246458,0.00054794,120]
[322560138,1713059446374,-500.0,0.00054794,120]
[322560139,1713059446383,-500.92058028,0.00054794,120]
[322560140,1713059446392,-530.85,0.00054794,120]
[322560141,1713059446402,-153.72257106,0.00054794,120]
[322560142,1713059446411,-500.0,0.00054794,120]
[322560143,1713059446420,-500.40192288,0.00054794,120]
[322560144,1713059446430,-500.0,0.00054794,120]
[322560145,1713059446439,-366.2208583,0.00054794,120]
[322560146,1713059446449,-500.0,0.00054794,14]
[322560147,1713059446458,-500.0,0.00054794,120]
[322560148,1713059446467,-500.0,0.00054794,120]
[322560149,1713059446477,-500.0,0.00054794,120]
[322560150,1713059446486,-500.0,0.00054794,120]
[322560151,1713059446495,-512.84,0.00054794,120]
[322560152,1713059446505,-500.0,0.00054794,120]
[322560153,1713059446514,-500.0,0.00054794,120]
[322560154,1713059446523,-500.0,0.00054794,120]
[322560155,1713059446532,-500.0,0.00054794,120]
[322560156,1713059446543,-500.0,0.00054794,120]
[322560157,1713059446552,-500.0,0.00054794,120]
[322560158,1713059446561,-500.0,0.00054794,120]
[322560159,1713059446570,-500.0,0.00054794,120]
[322560160,1713059446580,-500.0,0.00054794,120]
[322560161,1713059446589,-500.0,0.00054794,120]
[322560162,1713059446598,-500.0,0.00054794,120]
[322560163,1713059446607,-500.0,0.00054794,120]
[322560164,1713059446617,-248.79138308,0.00054794,120]
[322560165,1713059446626,-228.05207687,0.00054794,120]
[322560166,1713059446634,-500.0,0.00054794,120]
[322560167,1713059446643,-500.0,0.00054794,120]
[322560168,1713059446654,-521.04607733,0.00054794,120]
[322560169,1713059446663,-500.0,0.00054794,120]
[322560170,1713059446672,-500.0,0.00054794,120]
[322560171,1713059446681,-500.0,0.00054794,120]
[322560172,1713059446690,-1436.24,0.00054794,120]
[322560173,1713059446699,-501.58856166,0.00054794,120]
[322560174,1713059446708,-500.0,0.00054794,120]
[322560175,1713059446717,-500.0,0.00054794,120]
[322560176,1713059446727,-500.0,0.00054794,120]
[322560177,1713059446802,-500.0,0.00054794,120]
[322560178,1713059446811,-500.0,0.00054794,120]
[322560179,1713059446820,-500.0,0.00054794,120]
[322560180,1713059446829,-500.0,0.00054794,120]
[322560181,1713059446839,-500.0,0.00054794,120]
[322560182,1713059446848,-500.0,0.00054794,120]
[322560183,1713059446857,-500.0,0.00054794,120]
[322560184,1713059446867,-504.108242,0.00054794,120]
[322560185,1713059446876,-504.20607278,0.00054794,120]
[322560186,1713059446885,-151.0,0.00054794,120]
[322560187,1713059446894,-500.0,0.00054794,120]
[322560188,1713059446903,-500.0,0.00054794,120]
[322560189,1713059446913,-500.0,0.00054794,120]
[322560190,1713059446922,-500.0,0.00054794,120]
[322560191,1713059446931,-500.0,0.00054794,120]
[322560192,1713059446940,-500.0,0.00054794,120]
[322560193,1713059446950,-500.0,0.00054794,120]
[322560194,1713059446959,-500.0,0.00054794,120]
[322560195,1713059446968,-500.0,0.00054794,120]
[322560196,1713059446978,-500.0,0.00054794,120]
[322560197,1713059446987,-500.0,0.00054794,120]
[322560198,1713059446996,-500.0,0.00054794,120]
[322560199,1713059447006,-674.88,0.00054794,120]
[322560200,1713059447016,-500.0,0.00054794,120]
[322560201,1713059447025,-172.10345249,0.00054794,120]
[322560202,1713059447034,-500.0,0.00054794,120]
[322560203,1713059447045,-500.0,0.00054794,120]
[322560204,1713059447055,-500.0,0.00054794,120]
[322560205,1713059447064,-458.2718932,0.00054794,120]
[322560206,1713059447076,-3615.67,0.00054794,120]
[322560207,1713059447087,-500.0,0.00054794,120]
[322560208,1713059447097,-151.0,0.00054794,7]
[322560209,1713059447106,-151.0,0.00054794,7]
[322560210,1713059447116,-151.0,0.00054794,7]
[322560211,1713059447126,-500.0,0.00054794,120]
[322560212,1713059447135,-614.9,0.00054794,120]
[322560213,1713059447145,-500.0,0.00054794,120]
[322560214,1713059447155,-500.0,0.00054794,120]
[322560215,1713059447165,-500.0,0.00054794,120]
[322560216,1713059447174,-500.0,0.00054794,120]
[322560217,1713059447184,-500.0,0.00054794,120]
[322560218,1713059447194,-153.55575837,0.00054794,120]
[322560219,1713059447203,-500.0,0.00054794,120]
[322560220,1713059447213,-250.66945422,0.00054794,120]
[322560221,1713059447223,-500.0,0.00054794,120]
[322560222,1713059447232,-500.0,0.00054794,120]
[322560223,1713059447242,-500.0,0.00054794,120]
[322560224,1713059447251,-500.0,0.00054794,120]
[322560225,1713059447260,-500.0,0.00054794,120]
[322560226,1713059447269,-1091.56245988,0.00054794,120]
[322560227,1713059447289,-1775.47754012,0.00054794,120]
[322560228,1713059447298,-500.0,0.00054794,120]
[322560229,1713059447308,-500.0,0.00054794,120]
[322560230,1713059447317,-500.0,0.00054794,120]
[322560231,1713059447326,-500.0,0.00054794,120]
[322560232,1713059447336,-500.0,0.00054794,120]
[322560233,1713059447345,-1540.76,0.00054794,120]
[322560234,1713059447354,-503.02136169,0.00054794,120]
[322560235,1713059447363,-500.0,0.00054794,120]
[322560236,1713059447372,-500.0,0.00054794,120]
[322560237,1713059447382,-500.0,0.00054794,120]
[322560238,1713059447391,-500.0,0.00054794,120]
[322560239,1713059447400,-500.0,0.00054794,120]
[322560240,1713059447410,-500.0,0.00054794,120]
[322560241,1713059447419,-500.0,0.00054794,120]
[322560242,1713059447428,-500.0,0.00054794,120]
[322560243,1713059447437,-500.0,0.00054794,120]
[322560244,1713059447446,-500.0,0.00054794,120]
[322560245,1713059447455,-757.25,0.00054794,120]
[322560246,1713059447465,-500.0,0.00054794,120]
[322560247,1713059447475,-500.0,0.00054794,120]
[322560248,1713059447484,-500.0,0.00054794,20]
[322560249,1713059447494,-500.0,0.00054794,120]
[322560250,1713059447503,-500.0,0.00054794,120]
[322560251,1713059447512,-500.0,0.00054794,120]
[322560252,1713059447522,-772.57,0.00054794,120]
[322560253,1713059447531,-610.44808482,0.00054794,120]
[322560254,1713059447542,-974.66,0.00054794,120]
[322560255,1713059447552,-500.0,0.00054794,120]
[322560256,1713059447562,-500.0,0.00054794,120]
[322560257,1713059447571,-500.0,0.00054794,120]
[322560258,1713059447580,-500.0,0.00054794,120]
[322560259,1713059447589,-500.0,0.00054794,120]
[322560260,1713059447598,-500.0,0.00054794,120]
[322560261,1713059447607,-500.0,0.00054794,120]
[322560262,1713059447618,-620.18689651,0.00054794,120]
[322560263,1713059447627,-1000.0,0.00054794,120]
[322560264,1713059447636,-1000.0,0.00054794,120]
[322560265,1713059447645,-1000.0,0.00054794,120]
[322560266,1713059447655,-353.30354493,0.00054794,120]
[322560267,1713059447664,-345.60296202,0.00054794,120]
[322560268,1713059447673,-500.0,0.00054794,120]
[322560269,1713059447682,-500.0,0.00054794,120]
[322560270,1713059447691,-500.0,0.00054794,120]
[322560271,1713059447700,-1681.86,0.00054794,120]
[322560272,1713059447709,-500.0,0.00054794,120]
[322560273,1713059447719,-151.0,0.00054794,7]
[322560274,1713059447727,-151.166904,0.00054794,7]
[322560275,1713059447737,-500.0,0.00054794,120]
[322560276,1713059447745,-500.26766936,0.00054794,120]
[322560277,1713059447810,-111.01377737,0.00054794,120]
[322560284,1713059681179,383.84742675,0.00022,90]
[322560288,1713059862572,18418.62533235,0.00042896,120]
[322560294,1713060436236,-188.84242827,0.00027273,2]
[322560295,1713060436257,-500.0,0.00027274,2]
[322560296,1713060436278,-707.62758672,0.00027275,2]
[322560301,1713060549101,-166.13678258,0.00027275,2]
[322560302,1713060549127,-230.13526894,0.00027275,2]
[322560303,1713060549147,-413.01617915,0.00027292,2]
[322560304,1713060549168,-588.96553796,0.00027394,2]
[322560305,1713060549196,-175.8582287,0.00027397,2]
[322560306,1713060549217,-101.10620018,0.00027397,2]
[322560314,1713060565164,-57.12723482,0.00027397,2]
[322560315,1713060565188,-2785.6022594,0.0002933,2]
[322560340,1713060632643,-400.0,0.00030058,2]
[322560341,1713060632653,-400.0,0.00030058,2]
[322560342,1713060632663,-26343.7195411,0.00030059,2]
[322560343,1713060632672,-1124.357768,0.00030159,2]
[322560344,1713060632681,-598.4856426,0.00030325,2]
[322560345,1713060632692,-166.6666664,0.00031,2]
[322560346,1713060632701,-560.0,0.00032394,2]
[322560347,1713060632710,-10169.0,0.00033,5]
[322560348,1713060632719,-560.0,0.00033063,2]
[322560349,1713060632728,-20000.0,0.000339,7]
[322560350,1713060632738,-465.26500893,0.00034,4]
[322560351,1713060632746,-186.19696739,0.00035,30]
[322560352,1713060632756,-188.6440377,0.00036254,2]
[322560353,1713060632765,-783.0,0.0003637,2]
[322560354,1713060632775,-1440.0,0.00037,120]
[322560355,1713060632784,-729.176854,0.00037067,120]
[322560356,1713060632793,-1099.40799446,0.0003707,31]
[322560357,1713060632802,-168.4423654,0.00037931,2]
[322560358,1713060632811,-158.233435,0.00038356,2]
[322560359,1713060632821,-205.15974098,0.00038572,4]
[322560360,1713060632830,-453.38643555,0.00038572,4]
[322560361,1713060632840,-1407.60638131,0.0004,4]
[322560362,1713060632851,-193.0,0.00040007,3]
[322560363,1713060632862,-273.2983832,0.00040796,2]
[322560364,1713060632872,-1721.68604838,0.00041,30]
[322560365,1713060632882,-1061.90418992,0.00041,4]
[322560367,1713060632892,-443.58587653,0.00042,120]
[322560369,1713060632901,-516.40437106,0.000424,120]
[322560371,1713060632912,-2699.65263193,0.0004268,30]
[322560372,1713060632921,-484.63836443,0.00042782,2]
[322560374,1713060632930,-484.6383644,0.00042785,2]
[322560376,1713060632940,-484.6383644,0.00042787,2]
[322560377,1713060632949,-310.52016724,0.00042788,4]
[322560379,1713060632958,-155.18714578,0.00042788,4]
[322560380,1713060632966,-7960.4882987,0.00042789,4]
[322560381,1713060632976,-484.6383644,0.0004279,2]
[322560382,1713060632985,-13220.21405982,0.0004279,30]
[322560383,1713060632994,-484.6383644,0.00042792,2]
[322560384,1713060633004,-197.62022707,0.00042798,6]
[322560385,1713060633014,-10619.43475223,0.00042839,15]
[322560386,1713060633023,-1058.23912703,0.00042856,2]
[322560387,1713060633033,-155.05874787,0.00042859,4]
[322560388,1713060633043,-3680.98524717,0.0004286,60]
[322560389,1713060633053,-270.9698881,0.00042882,4]
[322560390,1713060633063,-207.34524667,0.00042882,2]
[322560391,1713060633074,-255.2996608,0.00042882,2]
[322560392,1713060633084,-500.0,0.00042883,31]
[322560393,1713060633095,-482.0929602,0.00042883,31]
[322560394,1713060633105,-491.17164796,0.00042883,31]
[322560395,1713060633115,-237.59954988,0.00042883,31]
[322560396,1713060633125,-151.0,0.00042883,7]
[322560397,1713060633135,-151.0,0.00042883,7]
[322560398,1713060633144,-48518.87222655,0.00042884,7]
[322560399,1713060633171,-574.69239176,0.00042884,7]
[322560400,1713060633232,-32703.18430278,0.00042884,7]
[322560464,1713060639753,-73051.52842796,0.00042892,5]
[322560465,1713060639762,-228339.39864087,0.00042892,7]
[322560467,1713060639774,-972.0795421,0.00042892,7]
[322560483,1713060640443,-486.42052489,0.00042891,4]
[322560484,1713060640452,-3538.32567722,0.00042892,7]
[322560507,1713060643398,-406.75621431,0.00042891,7]
[322560508,1713060643408,-55.24378569,0.00042892,7]
[322560509,1713060643457,-260.95493316,0.00042892,7]
[322560510,1713060643491,-31675.01781789,0.00042892,7]
[322560529,1713060685002,832.95929434,0.0002933,2]
[322560561,1713060912575,169.996218,0.00027397,2]
[322560565,1713060980632,216.003782,0.00029,2]
[322560627,1713061511823,30000.0,0.000252,7]
[322560629,1713061631170,-154.86062544,0.0002637,2]
[322560630,1713061631191,-538.85499397,0.0002637,2]
[322560631,1713061631289,-222.58558912,0.00026371,2]
[322560632,1713061649157,-221.23139293,0.00026367,2]
[322560633,1713061653094,-304.12291675,0.00026367,2]
[322560634,1713061653115,-282.66664621,0.00026368,2]
[322560635,1713061653136,-875.877051,0.00026369,2]
[322560636,1713061653156,-186.95780629,0.0002637,2]
[322560637,1713061675725,10000.0,0.00042896,30]
[322560639,1713061684004,10000.0,0.00042887,30]
[322560641,1713061701501,10000.0,0.00042887,30]
[322560644,1713061728172,10014.45,0.00042887,30]
[322560645,1713061759111,-441.61014225,0.00026095,2]
[322560646,1713061761132,-7411.75271631,0.00026095,2]
[322560647,1713061761154,-1966.28966028,0.00026096,2]
[322560648,1713061761177,-2824.62214179,0.00026097,7]
[322560649,1713061761200,-207.50225952,0.0002636,2]
[322560650,1713061761224,-2095.50910525,0.0002636,2]
[322560651,1713061761245,-300.0,0.0002636,2]
[322560652,1713061761264,-470.55371564,0.00026361,2]
[322560653,1713061761285,-157.46325471,0.00026361,2]
[322560654,1713061761305,-241.01674728,0.00026361,2]
[322560655,1713061761330,-473.75008714,0.00026361,2]
[322560656,1713061761352,-211.66364517,0.00026362,2]
[322560657,1713061761371,-155.87710472,0.0002637,2]
[322560658,1713061761391,-687.97368772,0.00026377,2]
[322560659,1713061761412,-500.0,0.00026378,2]
[322560660,1713061761431,-1252.764956,0.00026646,2]
[322560661,1713061761452,-165.452874,0.00027397,2]
[322560662,1713061761472,-236.66965838,0.000274,2]
[322560663,1713061761492,-167.582326,0.00028111,2]
[322560664,1713061761513,-13242.65870681,0.00028686,2]
[322560665,1713061761534,-420.0,0.00028996,2]
[322560666,1713061761554,-254.35595739,0.0002933,2]
[322560667,1713061761578,-1244.7072983,0.00029363,2]
[322560668,1713061762341,154.86062544,0.00026094,2]
[322560669,1713061764102,-167.582326,0.00031943,2]
[322560670,1713061764123,-188.43765363,0.00033897,2]
[322560671,1713061764142,-859.67234296,0.00033995,4]
[322560672,1713061764169,-591.34972317,0.00033997,4]
[322560737,1713061838477,-79.14612871,0.00033997,4]
[322560739,1713061838486,-804.55923863,0.00033997,2]
[322560740,1713061838495,-754.89389578,0.00033997,4]
[322560743,1713061838505,-437.21581549,0.00033999,4]
[322560744,1713061838514,-465.26500893,0.00034,4]
[322560747,1713061838524,-2005.236349,0.00035616,120]
[322560748,1713061838533,-185.0,0.00039,31]
[322560750,1713061838543,-1252.764956,0.00039969,2]
[322560752,1713061838552,-1407.60638131,0.00040795,4]
[322560754,1713061838562,-12058.90650067,0.00040795,2]
[322560757,1713061838571,-1148.66291412,0.00040796,2]
[322560758,1713061838581,-150.0,0.00041,30]
[322560761,1713061838591,-2005.236349,0.00041553,120]
[322560763,1713061838601,-7062.22213104,0.00042012,2]
[322560765,1713061838610,-788.819534,0.000426,39]
[322560767,1713061838620,-589.92308914,0.00042787,2]
[322560769,1713061838629,-795.0209057,0.00042846,15]
[322560771,1713061838640,-13999.77999906,0.0004285,2]
[322560773,1713061838649,-310.76940139,0.00042884,4]
[322560776,1713061838659,-362.87509329,0.00042885,4]
[322560779,1713061838668,-328.17821095,0.00042885,4]
[322560782,1713061838678,-500.0,0.00042885,31]
[322560785,1713061838688,-500.0,0.00042885,31]
[322560787,1713061838697,-327.78737273,0.00042885,31]
[322560789,1713061838707,-73051.52842796,0.00042886,5]
[322560791,1713061838717,-467034.0382619,0.00042887,7]
[322560793,1713061838726,-42952.21405721,0.00042887,2]
[322560824,1713061840019,-1905.0,0.00042887,2]
[322560837,1713061840926,-320.20020827,0.00035,30]